bitfinex/quotes_ETHUSD_20250411
["timestamp","ask_amount","ask_price","bid_price","bid_amount"]
[1744360575380,6.44454,1551.7,1551.5,0.32611616]
[1744360575679,3.0,1552.0,1551.6,6.44477]
[1744360575891,3.0,1552.0,1551.7,1.0095]
[1744360575892,6.44376,1551.9,1551.7,1.0095]
[1744360576183,12.88772,1551.9,1551.7,1.33415672]
[1744360576676,6.44376,1551.9,1551.7,1.33415672]
[1744360577487,6.44412,1551.8,1551.7,0.32465672]
[1744360577688,7.43762,1551.8,1551.7,0.32465672]
[1744360577875,15.270201,1551.8,1551.5,1.0262]
[1744360578089,6.44412,1551.8,1551.5,1.09064826]
[1744360578270,6.44412,1551.8,1551.6,0.32717361]
[1744360578471,12.88845,1551.8,1551.6,0.32717361]
[1744360579100,6.44454,1551.7,1551.6,0.32717361]
[1744360579305,7.47824,1551.7,1551.6,0.32717361]
[1744360579465,9.514907,1551.7,1551.6,0.32717361]
[1744360579665,6.44561,1551.5,1551.3,0.9443]
[1744360580232,6.44496,1551.6,1551.3,0.9443]
[1744360580503,12.89121,1551.5,1551.3,0.9443]
[1744360580662,6.44502,1551.6,1551.3,0.9443]
[1744360580863,12.89022,1551.6,1551.3,2.33447775]
[1744360581303,6.44542,1551.5,1551.3,0.9443]
[1744360581517,6.44634,1551.3,1551.1,0.9509]
[1744360581667,6.44551,1551.5,1551.1,7.4623729]
[1744360581867,14.44151,1551.5,1551.1,7.4623729]
[1744360582068,6.44594,1551.4,1551.1,15.30018619]
[1744360582286,20.88722,1551.5,1551.1,15.23572329]
[1744360582466,20.88722,1551.5,1551.2,0.06445864]
[1744360583172,14.44151,1551.5,1551.2,6.44661]
[1744360583401,7.996,1551.5,1551.3,7.44292]
[1744360583585,12.88937,1551.7,1551.3,8.2140795]
[1744360583793,6.4446,1551.7,1551.3,8.2140795]
[1744360584007,6.4446,1551.7,1551.4,6.44554]
[1744360584185,14.44015,1551.8,1551.5,1.004]
[1744360584515,6.4438,1551.9,1551.6,6.44492]
[1744360584716,9.44371,1551.9,1551.6,1.389421]
[1744360585010,6.4443,1551.8,1551.5,7.44929]
[1744360585211,6.44371,1551.9,1551.6,6.44487]
[1744360585411,6.44371,1551.9,1551.6,6.5093104]
[1744360585705,6.44371,1551.9,1551.6,6.44487]
[1744360585913,6.44371,1551.9,1551.6,6.50930931]
[1744360586066,6.44371,1551.9,1551.6,7.84073493]
[1744360586267,12.88767,1551.9,1551.6,7.84073493]
[1744360586517,12.88767,1551.9,1551.6,1.39586493]
[1744360586722,6.44416,1551.8,1551.6,1.39586493]
[1744360586872,6.44416,1551.8,1551.5,7.44934]
[1744360588013,12.88674,1552.0,1551.6,0.06444045]
[1744360588196,12.88674,1552.0,1551.6,6.50916045]
[1744360588514,12.0238,1552.1,1551.5,7.44929]
[1744360588515,6.44372,1551.9,1551.5,7.44929]
[1744360588811,6.44372,1551.9,1551.6,0.744929]
[1744360589808,12.88775,1551.9,1551.6,0.744929]
[1744360590013,6.44372,1551.9,1551.6,0.744929]
[1744360590674,6.44372,1551.9,1551.6,7.25422848]
[1744360590974,6.44372,1551.9,1551.7,0.32469835]
[1744360591174,6.44372,1551.9,1551.7,1.08259103]
[1744360592333,12.0238,1552.1,1551.7,1.08259103]
[1744360592609,6.44213,1552.3,1551.9,6.44344]
[1744360592823,6.44213,1552.3,1552.0,0.38362979]
[1744360593020,6.44213,1552.3,1552.0,6.82691979]
[1744360593316,6.44213,1552.3,1552.0,6.76249571]
[1744360593617,6.44213,1552.3,1552.0,8.08308928]
[1744360593914,0.05,1552.4,1552.2,7.41732]
[1744360594275,0.05,1552.4,1552.3,0.31772107]
[1744360595699,6.44226,1552.3,1552.1,1.0029]
[1744360597134,6.49169,1552.4,1552.1,7.51005044]
[1744360597333,12.93352,1552.4,1552.2,0.75100504]
[1744360597508,6.44205,1552.3,1552.1,1.0029]
[1744360599000,6.49169,1552.4,1552.1,7.51014047]
[1744360599195,6.49169,1552.4,1552.1,1.0029]
[1744360599408,12.93359,1552.4,1552.1,1.0029]
[1744360600543,6.44221,1552.3,1552.1,1.0029]
[1744360601042,12.93352,1552.4,1552.1,1.06732048]
[1744360601533,12.93352,1552.4,1552.1,1.0029]
[1744360601732,6.49169,1552.4,1552.1,7.51019025]
[1744360601938,12.93359,1552.4,1552.1,1.0029]
[1744360602856,12.93359,1552.4,1552.1,2.391819]
[1744360603718,6.49169,1552.4,1552.1,8.834659]
[1744360603910,6.49169,1552.4,1552.1,8.89907919]
[1744360604116,6.49169,1552.4,1552.1,8.834659]
[1744360604414,12.93351,1552.4,1552.1,8.834659]
[1744360604614,6.49169,1552.4,1552.1,8.8990793]
[1744360604855,0.05,1552.4,1552.2,7.21538379]
[1744360605152,0.05,1552.4,1552.3,1.4205]
[1744360605529,0.05,1552.4,1552.3,0.8705]
[1744360605916,0.05,1552.4,1552.3,1.18847967]
[1744360607536,6.49163,1552.4,1552.3,0.31797967]
[1744360607741,10.17306324,1552.4,1552.3,0.31797967]
[1744360607941,6.44289,1552.1,1551.9,0.8768]
[1744360608146,13.76311,1552.3,1551.9,7.32046]
[1744360608349,15.28993,1552.3,1552.0,0.31800387]
[1744360608552,6.44288,1552.1,1552.0,0.31800387]
[1744360608862,6.44345,1552.0,1551.7,7.36895739]
[1744360610455,8.8478,1552.3,1551.7,0.92443739]
[1744360610758,21.73241,1552.3,1551.9,7.32289]
[1744360610964,21.73241,1552.3,1551.9,7.38731914]
[1744360611134,15.29003,1552.3,1551.9,13.83086914]
[1744360611335,14.41123,1552.3,1552.0,6.44317]
[1744360611542,7.969,1552.3,1552.1,0.06442561]
[1744360612067,7.969,1552.3,1552.1,6.44273]
[1744360612363,0.05,1552.4,1552.2,0.9256]
[1744360612665,0.05,1552.4,1552.2,7.36783]
[1744360613172,0.05,1552.4,1552.2,0.9256]
[1744360613771,0.05,1552.4,1552.2,15.191363]
[1744360613987,0.05,1552.4,1552.3,6.99205]
[1744360614269,0.2996,1552.4,1552.3,7.87985]
[1744360614651,0.2996,1552.4,1552.3,7.32985]
[1744360615366,0.2996,1552.4,1552.3,7.39426277]
[1744360615961,0.2996,1552.4,1552.3,7.32985]
[1744360616175,0.2996,1552.4,1552.3,8.17528259]
[1744360620571,0.2996,1552.4,1552.3,8.11086979]
[1744360621070,0.2996,1552.4,1552.3,8.42591033]
[1744360621718,0.2996,1552.4,1552.3,8.97591033]
[1744360623108,0.2996,1552.4,1552.3,9.04031511]
[1744360623316,0.2996,1552.4,1552.3,8.97591033]
[1744360623477,0.2996,1552.4,1552.3,11.97591033]
[1744360624033,0.2996,1552.4,1552.3,12.04030367]
[1744360624184,7.29316,1553.1,1552.3,12.04030367]
[1744360624185,0.8543,1553.1,1552.8,6.43959]
[1744360624388,10.98771324,1553.3,1552.9,6.43937]
[1744360624710,10.98771324,1553.3,1553.0,6.43903]
[1744360624891,10.98771324,1553.3,1553.0,6.50341504]
[1744360625073,10.98771324,1553.3,1553.1,0.31234588]
[1744360625496,6.43832,1553.2,1553.1,0.31234588]
[1744360625735,6.4389,1553.1,1552.7,6.99024]
[1744360626027,12.87789,1553.1,1552.7,6.99022]
[1744360626336,6.4389,1553.1,1552.8,0.06439126]
[1744360626637,6.43835,1553.2,1552.9,6.43949]
[1744360626805,8.26726457,1553.2,1552.8,6.43983]
[1744360627239,6.43888,1553.1,1552.7,6.44036]
[1744360627544,6.43978,1552.9,1552.5,6.99116]
[1744360627744,6.44,1552.8,1552.5,6.44116]
[1744360628041,6.43978,1552.9,1552.5,6.44106]
[1744360628200,6.43978,1552.9,1552.5,7.175906]
[1744360628536,6.43978,1552.9,1552.6,6.44076]
[1744360630029,7.30356,1553.0,1552.6,6.50502756]
[1744360630233,7.30356,1553.0,1552.7,6.44026]
[1744360630934,13.74291,1553.0,1552.6,7.27613]
[1744360631441,13.74291,1553.0,1552.7,0.06439552]
[1744360631594,7.30356,1553.0,1552.6,7.27613]
[1744360631797,6.43916,1553.0,1552.6,7.922397]
[1744360631999,6.43916,1553.0,1552.7,6.50465265]
[1744360632240,15.22261,1553.1,1552.7,12.88047]
[1744360632734,9.48752,1553.4,1553.1,7.31475]
[1744360632735,0.05,1553.4,1553.1,7.31475]
[1744360632945,0.05,1553.4,1553.1,8.046545]
[1744360633245,0.05,1553.4,1553.2,6.50251528]
[1744360633409,0.05,1553.4,1553.2,6.43814]
[1744360633608,0.05,1553.4,1553.2,6.39814377]
[1744360634007,0.05,1553.4,1553.2,12.83631377]
[1744360634219,0.05,1553.4,1553.3,6.4379]
[1744360634421,0.05,1553.4,1553.3,7.8908]
[1744360635835,0.05,1553.4,1553.3,8.19910032]
[1744360636247,0.05,1553.4,1553.3,0.30830032]
[1744360636417,0.05,1553.4,1553.2,0.55]
[1744360636615,0.05,1553.4,1553.3,0.30791706]
[1744360637510,0.05,1553.4,1553.3,8.02541477]
[1744360637709,0.05,1553.4,1553.3,8.91951477]
[1744360637917,0.05,1553.4,1553.3,12.60094801]
[1744360639954,0.05,1553.4,1553.3,8.91951477]
[1744360640766,0.851,1554.3,1554.0,6.43492]
[1744360641062,3.851,1554.3,1554.1,0.06433955]
[1744360641264,11.961618,1554.3,1554.2,0.30088024]
[1744360641567,8.961618,1554.3,1554.0,6.43496]
[1744360641933,8.961618,1554.3,1554.1,0.29721265]
[1744360642364,6.43417,1554.2,1554.1,0.29721265]
[1744360642527,6.4834,1554.4,1554.1,0.29721265]
[1744360642731,6.4834,1554.4,1554.1,6.43443]
[1744360642732,6.48349,1554.4,1554.1,6.43443]
[1744360642946,0.05,1554.4,1554.2,0.29653931]
[1744360643147,0.05,1554.4,1554.2,6.73063931]
[1744360643888,0.05,1554.4,1554.3,7.85286]
[1744360644048,0.05,1554.4,1554.2,6.73063931]
[1744360644461,0.05,1554.4,1554.2,6.7948599]
[1744360645882,0.05,1554.4,1554.2,6.73052931]
[1744360646086,0.05,1554.4,1554.2,0.29653931]
[1744360646289,0.05,1554.4,1554.2,6.79502995]
[1744360646490,0.05,1554.4,1554.2,0.29653931]
[1744360647188,0.05,1554.4,1554.2,0.36087161]
[1744360647373,0.05,1554.4,1554.2,13.22899161]
[1744360647570,0.05,1554.4,1554.3,6.43376]
[1744360647944,0.05,1554.4,1554.3,6.72584647]
[1744360648151,0.05,1554.4,1554.3,7.27584647]
[1744360648385,0.05,1554.4,1554.3,8.12544647]
[1744360648570,0.05,1554.4,1554.3,11.87119967]
[1744360648774,0.05,1554.4,1554.3,8.85504418]
[1744360650788,0.05,1554.4,1554.3,8.91936167]
[1744360651484,0.05,1554.4,1554.3,8.85504418]
[1744360651693,0.05,1554.4,1554.3,8.91936481]
[1744360651904,0.05,1554.4,1554.3,8.85504418]
[1744360652194,0.05,1554.4,1554.3,0.29208647]
[1744360652593,7.32175,1554.4,1554.1,6.43453]
[1744360652902,13.75538,1554.4,1554.2,0.2946515]
[1744360653088,7.32175,1554.4,1554.2,0.2946515]
[1744360653285,0.8884,1554.4,1554.1,6.49876329]
[1744360653583,0.05,1554.4,1554.3,0.29408575]
[1744360653784,0.05,1554.4,1554.2,0.8446515]
[1744360653985,0.05,1554.4,1554.3,0.29408575]
[1744360655597,6.48335,1554.4,1554.3,0.29408575]
[1744360655800,0.05,1554.4,1554.3,0.29408575]
[1744360655966,0.05,1554.4,1554.3,0.06432897]
[1744360656167,0.05,1554.4,1554.3,0.29408575]
[1744360657205,0.05,1554.4,1554.3,0.35841472]
[1744360657501,0.05,1554.4,1554.3,8.07641719]
[1744360657796,0.05,1554.4,1554.3,8.97051719]
[1744360659401,0.05,1554.4,1554.3,8.90618822]
[1744360660867,0.05,1554.4,1554.3,8.01208822]
[1744360661699,0.05,1554.4,1554.3,0.29408575]
[1744360661901,0.05,1554.4,1554.3,7.27784575]
[1744360662101,0.05,1554.4,1554.3,0.29408575]
[1744360662501,0.05,1554.4,1554.1,7.26295]
[1744360662705,0.05,1554.4,1554.3,0.29401021]
[1744360662909,0.05,1554.4,1554.2,0.294576]
[1744360663143,0.05,1554.4,1554.3,0.29401021]
[1744360663144,6.48335,1554.4,1554.3,0.29401021]
[1744360663603,6.48335,1554.4,1554.2,0.06433301]
[1744360663810,0.05,1554.4,1554.3,0.29401021]
[1744360663987,6.48335,1554.4,1554.3,0.29401021]
[1744360664186,0.05,1554.4,1554.3,0.29401021]
[1744360664412,0.05,1554.4,1554.1,6.49890728]
[1744360664617,0.05,1554.4,1554.3,0.29401021]
[1744360664803,0.05,1554.4,1554.2,0.294576]
[1744360665008,6.48335,1554.4,1554.3,0.29401021]
[1744360665391,0.05,1554.4,1554.1,12.86897]
[1744360665588,0.05,1554.4,1554.3,0.29401021]
[1744360665918,6.48347,1554.4,1554.3,0.29433419]
[1744360666214,6.48347,1554.4,1554.1,6.43454]
[1744360666418,6.48347,1554.4,1554.3,0.29444213]
[1744360666616,6.48347,1554.4,1554.2,0.29500796]
[1744360666817,6.48347,1554.4,1554.1,6.43454]
[1744360666818,0.05,1554.4,1554.3,0.29444213]
[1744360666990,6.48335,1554.4,1554.3,0.29444213]
[1744360667187,6.48335,1554.4,1554.1,6.49873528]
[1744360667188,0.05,1554.4,1554.2,6.98402]
[1744360667521,0.05,1554.4,1554.3,6.72820213]
[1744360667722,0.05,1554.4,1554.3,0.29444213]
[1744360667949,0.05,1554.4,1554.3,6.79252922]
[1744360668219,0.05,1554.4,1554.3,6.72820213]
[1744360669296,0.05,1554.4,1554.3,6.79252892]
[1744360669496,0.05,1554.4,1554.3,8.09204939]
[1744360672828,0.05,1554.4,1554.3,1.10828939]
[1744360673125,0.05,1554.4,1554.3,6.72820213]
[1744360673304,0.05,1554.4,1554.3,0.29444213]
[1744360675147,0.05,1554.4,1554.3,6.72820213]
[1744360675351,0.05,1554.4,1554.3,8.15212911]
[1744360675647,0.05,1554.4,1554.3,8.08780213]
[1744360679847,0.05,1554.4,1554.3,7.53780213]
[1744360680051,0.05,1554.4,1554.3,7.60211814]
[1744360680349,0.05,1554.4,1554.3,8.15211814]
[1744360680958,0.05,1554.4,1554.3,11.08780213]
[1744360681246,0.3970125,1554.5,1554.4,9.98335]
[1744360681560,0.3970125,1554.5,1554.4,12.25590654]
[1744360682273,0.3970125,1554.5,1554.4,10.83300654]
[1744360682424,0.3970125,1554.5,1554.4,10.89732212]
[1744360682624,0.3970125,1554.5,1554.4,11.38300654]
[1744360683853,0.3970125,1554.5,1554.4,11.86016308]
[1744360684943,0.3970125,1554.5,1554.4,8.37447729]
[1744360685141,0.3970125,1554.5,1554.4,7.20138287]
[1744360685349,0.3970125,1554.5,1554.4,7.75138287]
[1744360685640,0.3970125,1554.5,1554.4,7.20138287]
[1744360685838,0.3970125,1554.5,1554.4,7.81569975]
[1744360686357,0.3970125,1554.5,1554.4,7.75138287]
[1744360686922,0.3970125,1554.5,1554.4,9.25147716]
[1744360687527,0.3970125,1554.5,1554.4,9.31579553]
[1744360687749,0.3970125,1554.5,1554.4,9.25147716]
[1744360688463,0.3970125,1554.5,1554.4,8.77432062]
[1744360688824,1.2371125,1554.5,1554.4,0.29087633]
[1744360690353,4.91854574,1554.5,1554.4,0.29087633]
[1744360690768,11.35147574,1554.5,1554.4,0.29087633]
[1744360691054,10.6700425,1554.5,1554.4,0.29087633]
[1744360691225,4.2371125,1554.5,1554.2,6.43395]
[1744360691423,1.2371125,1554.5,1554.4,0.29257865]
[1744360691652,1.2371125,1554.5,1554.3,0.29314436]
[1744360691862,1.2371125,1554.5,1554.4,0.29257865]
[1744360692226,1.2371125,1554.5,1554.2,7.74833632]
[1744360692432,7.6700425,1554.5,1554.4,0.29257865]
[1744360692635,7.6700425,1554.5,1554.3,0.29314436]
[1744360692839,7.6700425,1554.5,1554.4,0.29257865]
[1744360693036,10.23944607,1554.5,1554.1,6.23258519]
[1744360693355,17.39427324,1554.4,1554.2,0.29371015]
[1744360693656,10.96063324,1554.4,1554.2,0.29371015]
[1744360693857,9.43376,1554.3,1554.2,0.29371015]
[1744360694171,10.27946,1554.3,1554.2,0.29371015]
[1744360694837,0.8457,1553.9,1553.8,6.23258519]
[1744360695036,10.96255324,1553.9,1553.8,6.23258519]
[1744360695279,13.91405324,1553.9,1553.8,6.23258519]
[1744360696042,13.91405324,1553.9,1553.8,6.53121405]
[1744360697376,13.91405324,1553.9,1553.8,0.29862886]
[1744360697554,0.8636,1554.1,1553.9,6.43526]
[1744360697759,0.8636,1554.1,1554.0,0.643526]
[1744360697940,0.8636,1554.1,1554.0,0.93816296]
[1744360700073,15.20392,1554.4,1554.0,7.92276296]
[1744360700267,0.8575,1554.4,1554.1,6.43446]
[1744360700494,0.8575,1554.4,1554.2,7.14192039]
[1744360700639,0.8575,1554.4,1554.2,13.86941592]
[1744360700842,0.8575,1554.4,1554.2,7.37094153]
[1744360701072,0.8575,1554.4,1554.2,7.43527581]
[1744360701371,0.3970125,1554.5,1554.3,12.86714]
[1744360701675,0.3970125,1554.5,1554.3,13.74230079]
[1744360701872,0.3970125,1554.5,1554.4,7.340696]
[1744360702240,0.3970125,1554.5,1554.4,8.143996]
[1744360702960,0.3970125,1554.5,1554.4,8.079672]
[1744360703468,0.3970125,1554.5,1554.4,8.14399308]
[1744360703648,0.3970125,1554.5,1554.4,9.43096508]
[1744360704172,0.3970125,1554.5,1554.4,9.366644]
[1744360708191,0.3970125,1554.5,1554.4,9.43096014]
[1744360709188,0.8333,1555.3,1555.2,6.43004]
[1744360709394,0.8833,1555.4,1555.2,6.43004]
[1744360709589,0.8833,1555.4,1555.2,6.71471572]
[1744360709755,0.05,1555.4,1555.2,6.77900602]
[1744360709958,0.05,1555.4,1555.3,6.97962]
[1744360710386,0.05,1555.4,1555.3,7.26444884]
[1744360710691,0.05,1555.4,1555.3,0.83482884]
[1744360711099,0.05,1555.4,1555.3,7.32873182]
[1744360711295,0.05,1555.4,1555.3,8.19953182]
[1744360711466,0.05,1555.4,1555.3,9.48650382]
[1744360711802,0.05,1555.4,1555.3,9.42222084]
[1744360712011,0.05,1555.4,1555.3,9.8981678]
[1744360712310,0.05,1555.4,1555.3,9.96244258]
[1744360712472,0.05,1555.4,1555.3,9.8981678]
[1744360712907,0.05,1555.4,1555.3,9.96243909]
[1744360713115,0.05,1555.4,1555.3,13.64387233]
[1744360713309,0.05,1555.4,1555.3,13.57960104]
[1744360713522,0.3970125,1556.1,1556.0,0.7943]
[1744360713674,0.3970125,1556.1,1556.0,8.55742947]
[1744360714021,0.3970125,1556.1,1556.0,8.76916465]
[1744360714320,0.3970125,1556.1,1556.0,11.83340763]
[1744360714478,0.3970125,1556.1,1556.0,11.76916465]
[1744360714687,0.05,1556.4,1556.2,3.0]
[1744360714891,0.05,1556.4,1556.3,9.60318271]
[1744360715077,0.05,1556.4,1556.3,17.29290557]
[1744360715811,0.8593,1557.2,1556.7,1.375]
[1744360716112,6.4227,1557.0,1556.8,0.2675864]
[1744360716331,13.70318,1557.2,1556.8,0.33181119]
[1744360716465,0.8593,1557.2,1556.8,6.75504119]
[1744360716670,6.42137,1557.3,1556.9,0.55]
[1744360716971,0.05,1557.4,1557.1,6.97218]
[1744360717171,0.05,1557.4,1557.2,0.06420272]
[1744360717390,0.05,1557.4,1557.3,6.97137]
[1744360717627,1e-05,1557.4,1557.3,14.62175222]
[1744360717769,0.3970125,1557.6,1557.5,10.80314]
[1744360717969,0.3970125,1557.6,1557.5,18.68414]
[1744360718170,0.3970125,1557.6,1557.5,18.94395651]
[1744360721007,0.3970125,1557.6,1557.5,11.06295651]
[1744360721307,0.3970125,1557.6,1557.5,15.94395651]
[1744360721498,0.3970125,1557.6,1557.5,16.7776277]
[1744360722478,0.3970125,1557.6,1557.5,16.2276277]
[1744360722680,6.41854,1558.0,1557.5,22.6479277]
[1744360722879,7.21714,1558.0,1557.5,16.2273877]
[1744360723094,6.41891,1557.9,1557.5,0.25981651]
[1744360723383,6.41891,1557.9,1557.6,0.06419023]
[1744360723594,6.41972,1557.7,1557.6,0.25538127]
[1744360723800,5.81494239,1557.6,1557.2,6.4216]
[1744360724008,5.81494239,1557.6,1557.1,15.07924]
[1744360724314,6.42057,1557.5,1557.2,1.507924]
[1744360724529,6.42115,1557.4,1556.9,62.35211]
[1744360724824,6.42165,1557.3,1556.8,6.89819937]
[1744360725022,6.42195,1557.2,1556.7,15.0734]
[1744360725186,6.42195,1557.2,1556.8,1.50734]
[1744360725781,6.42165,1557.3,1556.9,0.0642153]
[1744360726080,12.84223,1557.4,1556.9,6.4871453]
[1744360726411,6.42096,1557.4,1557.0,0.26037564]
[1744360728090,12.84216,1557.4,1557.0,0.26037564]
[1744360728324,6.42096,1557.4,1557.0,7.33768843]
[1744360728520,6.42152,1557.3,1557.0,0.91516843]
[1744360728725,7.24808,1557.2,1557.0,0.26037564]
[1744360728905,7.24808,1557.2,1556.7,7.19837]
[1744360729099,6.42239,1557.1,1556.8,0.26161074]
[1744360729299,6.42264,1557.0,1556.8,0.26161074]
[1744360729611,6.42239,1557.1,1556.7,0.06422443]
[1744360729816,6.42239,1557.1,1556.9,0.23952384]
[1744360730196,6.42239,1557.1,1556.7,1.35547287]
[1744360730828,6.42239,1557.1,1556.8,0.24008764]
[1744360731196,6.42256,1557.1,1556.9,0.06422263]
[1744360731428,7.24785,1557.2,1556.9,0.06422263]
[1744360731728,7.24785,1557.2,1557.0,0.23662713]
[1744360731930,13.66986,1557.2,1556.8,6.42335]
[1744360732131,13.66986,1557.2,1556.9,0.23719087]
[1744360732424,7.24785,1557.2,1557.0,0.06421786]
[1744360732630,9.42144,1557.3,1557.0,0.23662713]
[1744360732924,9.42144,1557.3,1556.8,8.64863435]
[1744360733126,6.42178,1557.2,1556.8,2.22548435]
[1744360733293,6.42178,1557.2,1556.9,0.23740611]
[1744360733494,6.42178,1557.2,1557.0,0.55]
[1744360733735,6.42178,1557.2,1557.1,0.23617107]
[1744360733903,6.42014,1557.6,1557.2,0.55]
[1744360734109,6.42071,1557.5,1557.2,0.55]
[1744360734426,6.42071,1557.5,1557.3,0.29860234]
[1744360735510,7.23034,1557.6,1557.3,6.65562845]
[1744360735511,0.8102,1557.6,1557.3,6.65562845]
[1744360735709,0.8102,1557.6,1557.3,1.50789919]
[1744360736109,7.23036,1557.6,1557.3,1.50789919]
[1744360736314,0.8102,1557.6,1557.3,1.50789919]
[1744360737240,0.8102,1557.6,1557.3,7.92923919]
[1744360737534,0.8102,1557.6,1557.3,1.50789919]
[1744360737735,0.8102,1557.6,1557.3,7.92922919]
[1744360737935,7.23351,1557.8,1557.4,7.76384292]
[1744360738137,13.65305,1557.8,1557.5,0.23397081]
[1744360738336,7.23351,1557.8,1557.5,0.23397081]
[1744360738543,0.8142,1557.8,1557.5,0.23397081]
[1744360738835,7.61498,1557.8,1557.5,0.23397081]
[1744360739008,7.61498,1557.8,1557.3,6.9712]
[1744360739332,3.8142,1557.8,1557.6,0.23378399]
[1744360739518,0.775,1558.0,1557.6,0.55]
[1744360739831,0.775,1558.0,1557.7,6.65257803]
[1744360740032,0.775,1558.0,1557.8,0.06418271]
[1744360740239,6.41809,1558.1,1557.8,0.55]
[1744360740437,0.8321,1558.2,1557.9,0.23177175]
[1744360740622,0.8321,1558.2,1558.0,0.06417522]
[1744360740939,0.8249,1558.4,1558.1,6.41794]
[1744360741242,0.8249,1558.4,1558.2,0.22811165]
[1744360741603,0.8249,1558.4,1558.2,6.64570165]
[1744360741803,12.5032,1559.3,1558.2,6.64570165]
[1744360741804,0.8127,1559.1,1558.5,0.55]
[1744360742030,11.55188448,1559.1,1558.6,6.41581]
[1744360742339,6.4144,1559.0,1558.6,0.22185492]
[1744360742844,8.51098845,1559.0,1558.6,0.22185492]
[1744360743010,12.83011,1558.9,1558.6,0.22185492]
[1744360743214,6.41439,1559.0,1558.5,6.96638]
[1744360743413,0.3970125,1559.2,1559.1,6.41395]
[1744360743629,2.5e-06,1559.2,1559.1,7.79585]
[1744360743950,0.32567697,1560.1,1559.1,7.79585]
[1744360743951,0.32567697,1560.1,1560.0,7.24215]
[1744360744246,0.05,1560.4,1560.2,12.81846]
[1744360744413,0.05,1560.4,1560.2,6.40921]
[1744360744614,0.05,1560.4,1560.3,0.21315156]
[1744360744809,6.45861,1560.4,1560.3,0.21315156]
[1744360745004,6.40905,1560.3,1559.8,6.411]
[1744360745316,6.45869,1560.4,1559.9,0.20877778]
[1744360745513,6.40953,1560.2,1559.9,0.20877778]
[1744360745725,6.41088,1559.9,1559.3,7.23379]
[1744360745938,0.1905168,1560.2,1560.1,6.40984]
[1744360746115,0.1905168,1560.2,1560.1,7.8698026]
[1744360746318,0.1905168,1560.2,1560.1,8.355724]
[1744360746754,0.1905168,1560.2,1560.1,7.71474]
[1744360747066,0.1905168,1560.2,1560.1,0.55]
[1744360747208,6.8e-06,1560.2,1560.1,18.66682297]
[1744360747412,6.8e-06,1560.4,1560.3,6.40902]
[1744360747718,0.05,1561.4,1561.3,6.95491]
[1744360747925,1e-05,1561.4,1561.3,11.43787912]
[1744360748125,1e-05,1561.4,1561.3,11.84600937]
[1744360749012,1e-05,1561.4,1561.3,11.91002262]
[1744360749361,0.4618086,1562.1,1561.3,11.91002262]
[1744360749362,0.4618086,1562.1,1561.9,6.40223]
[1744360749577,0.4618086,1562.1,1562.0,6.46604364]
[1744360749729,0.4618086,1562.1,1561.9,6.40223]
[1744360749924,0.4618086,1562.1,1562.0,0.55]
[1744360750265,7.843,1563.3,1562.0,0.55]
[1744360750266,0.48518413,1563.8,1562.4,0.804]
[1744360750576,0.48518413,1563.8,1563.1,6.39744]
[1744360750577,7.65592413,1563.8,1563.1,6.39744]
[1744360750854,1.26088413,1563.8,1563.0,6.39794]
[1744360751054,12.79219,1563.5,1562.9,0.48850039]
[1744360751260,4.334219,1563.4,1562.6,6.39958]
[1744360751424,6.39853,1562.9,1562.4,0.804]
[1744360751623,6.39853,1562.9,1562.0,12.8037]
[1744360751624,6.39836,1562.9,1562.0,12.8037]
[1744360751820,6.39915,1562.8,1562.2,6.40102]
[1744360752027,0.7731,1562.6,1561.8,0.771]
[1744360752351,0.7731,1562.6,1561.4,17.02443139]
[1744360752352,6.40225,1562.0,1561.4,17.79953139]
[1744360752550,0.7826,1561.9,1561.4,6.23258519]
[1744360752866,0.7826,1561.9,1560.8,14.2427]
[1744360752867,6.40454,1561.4,1560.8,6.40695]
[1744360753027,6.40454,1561.4,1560.4,71.99755139]
[1744360753028,0.8083,1561.2,1560.4,13.41455519]
[1744360753364,6.40732,1560.8,1560.4,6.23258519]
[1744360753658,6.40747,1560.7,1560.4,6.23258519]
[1744360753863,7.048217,1560.7,1560.4,6.23258519]
[1744360754359,6.40902,1560.3,1560.2,7.67641906]
[1744360754662,7.1824,1560.5,1560.1,0.05]
[1744360754663,0.7742,1560.5,1560.1,0.05]
[1744360754866,6.40943,1560.2,1560.1,0.05]
[1744360755162,0.7742,1560.5,1560.1,0.19312607]
[1744360755326,6.40913,1560.3,1560.1,0.19312607]
[1744360755666,6.40943,1560.2,1560.1,0.19312607]
[1744360756229,9.40943,1560.2,1560.1,0.19312607]
[1744360756454,9.40943,1560.2,1560.1,0.05]
[1744360756941,9.40943,1560.2,1559.1,6.46373]
[1744360756942,6.41163,1559.7,1559.1,6.46373]
[1744360757273,6.41313,1559.3,1559.2,0.14829125]
[1744360757487,6.41313,1559.3,1559.2,1.25e-06]
[1744360757488,17.54313,1559.3,1559.2,1.25e-06]
[1744360757637,10.23204,1559.2,1559.1,0.05]
[1744360758688,6.41604,1558.6,1558.1,6.46773]
[1744360758841,6.41604,1558.6,1558.2,0.646773]
[1744360759040,20.96114,1558.8,1558.2,0.78742901]
[1744360759341,8.13,1558.8,1558.2,7.20502901]
[1744360759672,8.13,1558.8,1558.3,6.41699]
[1744360759851,8.13,1558.8,1558.5,6.41622]
[1744360760172,11.9485,1559.2,1558.6,0.13872645]
[1744360760374,6.41465,1559.0,1558.5,6.4164]
[1744360760539,6.41589,1558.7,1558.6,0.1398008]
[1744360760741,6.41652,1558.5,1558.1,0.05]
[1744360761070,11.133,1558.7,1558.2,0.13872037]
[1744360761071,6.41725,1558.3,1558.2,0.13872037]
[1744360761276,8.133,1558.3,1558.2,0.13872037]
[1744360761474,8.133,1558.3,1558.1,0.05]
[1744360761673,14.55031,1558.3,1558.1,0.05]
[1744360761988,23.064611,1558.3,1558.2,0.12961594]
[1744360762141,6.41766,1558.2,1558.1,0.05]